fUSD/lending_fUSD_20240420
["ID","MTS","AMOUNT","RATE_DAILY","PERIOD"]
[323054281,1713621106109,-1131.55,0.00016986,2]
[323054282,1713621106119,-622.04,0.00016986,2]
[323054283,1713621106129,-1320.88,0.00016986,2]
[323054284,1713621106139,-500.0,0.00016986,2]
[323054285,1713621106149,-1413.35,0.00016986,2]
[323054286,1713621106158,-500.0,0.00016986,2]
[323054287,1713621106169,-500.0,0.00016986,2]
[323054288,1713621106179,-2346.4,0.00016986,2]
[323054289,1713621106188,-803.26,0.00016986,2]
[323054290,1713621106198,-563.88,0.00016986,2]
[323054291,1713621106207,-2292.01,0.00016986,2]
[323054292,1713621106217,-500.0,0.00016986,2]
[323054293,1713621106226,-831.92,0.00016986,2]
[323054294,1713621106237,-1128.04,0.00016986,2]
[323054295,1713621106251,-5369.64,0.00016986,2]
[323054296,1713621106262,-3431.1,0.00016986,2]
[323054297,1713621106273,-680.01,0.00016986,2]
[323054298,1713621106285,-546.08,0.00016986,2]
[323054299,1713621106295,-2676.86,0.00016986,2]
[323054300,1713621106305,-500.0,0.00016986,2]
[323054301,1713621106317,-727.28,0.00016986,2]
[323054302,1713621106327,-2216.75,0.00016986,2]
[323054303,1713621106338,-342.25155604,0.00016986,2]
[323054304,1713621106348,-823.84,0.00016986,2]
[323054305,1713621106358,-500.0,0.00016986,2]
[323054306,1713621106369,-1588.82,0.00016986,2]
[323054307,1713621106380,-1811.35,0.00016986,2]
[323054308,1713621106389,-841.25,0.00016986,2]
[323054309,1713621106399,-500.0,0.00016986,2]
[323054310,1713621106410,-500.0,0.00016986,2]
[323054311,1713621106420,-500.0,0.00016986,2]
[323054312,1713621106430,-906.35,0.00016986,2]
[323054313,1713621106439,-866.08,0.00016986,2]
[323054314,1713621106450,-1171.0,0.00016986,2]
[323054315,1713621106462,-3500.27,0.00016986,2]
[323054316,1713621106472,-1349.52,0.00016986,2]
[323054317,1713621106482,-4084.13,0.00016986,2]
[323054318,1713621106494,-506.37,0.00016986,2]
[323054319,1713621106507,-2730.13,0.00016986,2]
[323054320,1713621106516,-1215.96,0.00016986,2]
[323054321,1713621106525,-500.0,0.00016986,2]
[323054322,1713621106535,-500.0,0.00016986,2]
[323054323,1713621106544,-500.0,0.00016986,2]
[323054324,1713621106554,-570.63,0.00016986,2]
[323054325,1713621106564,-1517.62,0.00016986,2]
[323054326,1713621106574,-500.0,0.00016986,2]
[323054327,1713621106585,-2492.62,0.00016986,2]
[323054328,1713621106595,-1694.66,0.00016986,2]
[323054329,1713621106605,-589.63,0.00016986,2]
[323054330,1713621106616,-1038.52,0.00016986,2]
[323054331,1713621106627,-500.0,0.00016986,2]
[323054332,1713621106637,-544.68,0.00016986,2]
[323054333,1713621106648,-745.95,0.00016986,2]
[323054334,1713621106658,-500.0,0.00016986,2]
[323054335,1713621106669,-2146.81,0.00016986,2]
[323054336,1713621106680,-500.0,0.00016986,2]
[323054337,1713621106690,-12863.04,0.00016986,2]
[323054338,1713621106701,-500.0,0.00016986,2]
[323054339,1713621106712,-1580.69,0.00016986,2]
[323054340,1713621106722,-872.9,0.00016986,2]
[323054341,1713621106732,-2481.94,0.00016986,2]
[323054342,1713621106746,-2416.85,0.00016986,2]
[323054343,1713621106756,-517.67,0.00016986,2]
[323054344,1713621106767,-716.61,0.00016986,2]
[323054345,1713621106780,-607.93,0.00016986,2]
[323054346,1713621106803,-500.0,0.00016986,2]
[323054347,1713621106821,-698.46,0.00016986,2]
[323054348,1713621106832,-1176.49,0.00016986,2]
[323054349,1713621106843,-1895.23,0.00016986,2]
[323054350,1713621106852,-2366.37,0.00016986,2]
[323054351,1713621106862,-834.84,0.00016986,2]
[323054352,1713621106872,-500.0,0.00016986,2]
[323054353,1713621106882,-214.32087788,0.00016986,2]
[323054354,1713621106892,-500.0,0.00016986,2]
[323054355,1713621106902,-500.0,0.00016986,2]
[323054356,1713621106912,-1264.42,0.00016986,2]
[323054357,1713621106922,-500.0,0.00016986,2]
[323054358,1713621106933,-1525.57,0.00016986,2]
[323054359,1713621106943,-1200.1,0.00016986,2]
[323054360,1713621106954,-500.0,0.00016986,2]
[323054361,1713621106964,-2596.31,0.00016986,2]
[323054362,1713621106974,-3734.56,0.00016986,2]
[323054363,1713621106983,-1983.17,0.00016986,2]
[323054364,1713621106995,-735.18,0.00016986,2]
[323054365,1713621107004,-1892.67,0.00016986,2]
[323054366,1713621107014,-685.33,0.00016986,2]
[323054367,1713621107023,-794.67,0.00016986,2]
[323054368,1713621107033,-2762.86,0.00016986,2]
[323054369,1713621107042,-698.53,0.00016986,2]
[323054370,1713621107053,-500.0,0.00016986,2]
[323054371,1713621107063,-4314.41,0.00016986,2]
[323054372,1713621107072,-928.74,0.00016986,2]
[323054373,1713621107082,-500.0,0.00016986,2]
[323054374,1713621107092,-556.39,0.00016986,2]
[323054375,1713621107102,-704.33,0.00016986,2]
[323054376,1713621107112,-4750.03,0.00016986,2]
[323054377,1713621107122,-500.0,0.00016986,2]
[323054378,1713621107132,-396.62256969,0.00016986,2]
[323054379,1713621107142,-6352.14,0.00016986,2]
[323054380,1713621107152,-554.92,0.00016986,2]
[323054381,1713621107162,-1612.53,0.00016986,2]
[323054382,1713621107173,-1230.53,0.00016986,2]
[323054383,1713621107183,-500.0,0.00016986,2]
[323054384,1713621107193,-609.06120439,0.00016986,2]
[323054385,1713621107203,-1323.32,0.00016986,2]
[323054386,1713621107212,-5730.53,0.00016986,2]
[323054387,1713621107222,-3222.01,0.00016986,2]
[323054388,1713621107233,-1237.83,0.00016986,2]
[323054389,1713621107244,-801.29,0.00016986,2]
[323054390,1713621107254,-500.0,0.00016986,2]
[323054391,1713621107265,-500.0,0.00016986,2]
[323054392,1713621107276,-500.0,0.00016986,2]
[323054393,1713621107288,-1250.13,0.00016986,2]
[323054394,1713621107301,-8896.9,0.00016986,2]
[323054395,1713621107312,-21516.91,0.00016986,2]
[323054396,1713621107322,-1238.37,0.00016986,2]
[323054397,1713621107332,-618.25,0.00016986,2]
[323054398,1713621107342,-500.0,0.00016986,2]
[323054399,1713621107352,-1269.11,0.00016986,2]
[323054400,1713621107364,-622.79,0.00016986,2]
[323054401,1713621107374,-582.42,0.00016986,2]
[323054402,1713621107385,-500.0,0.00016986,2]
[323054403,1713621107395,-500.0,0.00016986,2]
[323054404,1713621107405,-1000.0,0.00016986,2]
[323054405,1713621107414,-736.180461,0.00016986,2]
[323054406,1713621107424,-887.8211811,0.00016988,2]
[323054407,1713621107434,-904.5658868,0.00016988,2]
[323054408,1713621107444,-863.2062036,0.00016988,2]
[323054409,1713621107455,-879.4866598,0.00016988,2]
[323054410,1713621107466,-10947.8423809,0.00016988,2]
[323054411,1713621107476,-11154.3235986,0.00016988,2]
[323054412,1713621107486,-59247.0175342,0.00016988,2]
[323054413,1713621107498,-60364.442859,0.00016988,2]
[323054414,1713621107508,-5812.0803767,0.00016988,2]
[323054415,1713621107518,-5921.6988195,0.00016988,2]
[323054416,1713621107528,-1040.1589123,0.00016988,2]
[323054417,1713621107537,-1059.7767759,0.00016988,2]
[323054418,1713621107548,-6220.0305797,0.00016988,2]
[323054419,1713621107558,-6337.3431463,0.00016988,2]
[323054420,1713621107568,-30791.0505253,0.00016988,2]
[323054421,1713621107578,-31371.7835489,0.00016988,2]
[323054422,1713621107587,-31952.5165725,0.00016988,2]
[323054423,1713621107597,-521.45665024,0.00017,2]
[323054424,1713621107607,-226.6233157,0.00017,2]
[323054425,1713621107616,-13536592.19,0.00017,2]
[323054426,1713621107625,-150.0,0.00017,2]
[323054427,1713621107635,-150.0,0.00017,2]
[323054428,1713621107645,-1707.29748612,0.00017,2]
[323054429,1713621107654,-1707.29748612,0.00017,2]
[323054430,1713621107664,-1707.29748612,0.00017,2]
[323054431,1713621107674,-1707.29748612,0.00017,2]
[323054432,1713621107684,-1707.29748612,0.00017,2]
[323054433,1713621107693,-1707.29748612,0.00017,2]
[323054434,1713621107702,-1707.29748612,0.00017,2]
[323054435,1713621107712,-1707.29748612,0.00017,2]
[323054436,1713621107722,-1707.29748612,0.00017,2]
[323054437,1713621107731,-1707.29748612,0.00017,2]
[323054438,1713621107740,-1707.29748612,0.00017,2]
[323054439,1713621107751,-1707.29748612,0.00017,2]
[323054440,1713621107761,-1707.29748612,0.00017,2]
[323054441,1713621107770,-1707.29748612,0.00017,2]
[323054442,1713621107780,-1707.29748612,0.00017,2]
[323054443,1713621107789,-1707.29748612,0.00017,2]
[323054444,1713621107799,-1707.29748612,0.00017,2]
[323054445,1713621107808,-1707.29748612,0.00017,2]
[323054446,1713621107819,-1707.29748612,0.00017,2]
[323054447,1713621107830,-1707.29748612,0.00017,2]
[323054448,1713621107840,-1707.29748612,0.00017,2]
[323054449,1713621107851,-1707.29748612,0.00017,2]
[323054450,1713621107861,-1707.29748612,0.00017,2]
[323054451,1713621107872,-1707.29748612,0.00017,2]
[323054452,1713621107883,-1707.29748612,0.00017,2]
[323054453,1713621107893,-1707.29748612,0.00017,2]
[323054454,1713621107904,-1707.29748612,0.00017,2]
[323054455,1713621107915,-1707.29748612,0.00017,2]
[323054456,1713621107926,-1707.29748612,0.00017,2]
[323054457,1713621107937,-1707.29748612,0.00017,2]
[323054458,1713621107948,-1707.29748612,0.00017,2]
[323054459,1713621107959,-1707.29748612,0.00017,2]
[323054460,1713621107971,-1707.29748612,0.00017,2]
[323054461,1713621107982,-1707.29748612,0.00017,2]
[323054462,1713621107993,-1707.29748612,0.00017,2]
[323054463,1713621108005,-1707.29748612,0.00017,2]
[323054464,1713621108016,-1707.29748612,0.00017,2]
[323054465,1713621108026,-1707.29748612,0.00017,2]
[323054466,1713621108037,-1707.29748612,0.00017,2]
[323054467,1713621108048,-1707.29748612,0.00017,2]
[323054468,1713621108058,-1707.29748612,0.00017,2]
[323054469,1713621108069,-1707.29748612,0.00017,2]
[323054470,1713621108081,-1707.29748612,0.00017,2]
[323054471,1713621108092,-1707.29748612,0.00017,2]
[323054472,1713621108102,-1707.29748612,0.00017,2]
[323054473,1713621108113,-1707.29748612,0.00017,2]
[323054474,1713621108123,-1707.29748612,0.00017,2]
[323054475,1713621108133,-1707.29748612,0.00017,2]
[323054476,1713621108144,-1707.29748612,0.00017,2]
[323054477,1713621108154,-1707.29748612,0.00017,2]
[323054478,1713621108164,-1707.29748612,0.00017,2]
[323054479,1713621108175,-1707.29748612,0.00017,2]
[323054480,1713621108184,-1707.29748612,0.00017,2]
[323054481,1713621108194,-1707.29748612,0.00017,2]
[323054482,1713621108204,-1707.29748612,0.00017,2]
[323054483,1713621108215,-1707.29748612,0.00017,2]
[323054484,1713621108225,-1707.29748612,0.00017,2]
[323054485,1713621108235,-1707.29748612,0.00017,2]
[323054486,1713621108247,-1707.29748612,0.00017,2]
[323054487,1713621108257,-1707.29748612,0.00017,2]
[323054488,1713621108267,-1707.29748612,0.00017,2]
[323054489,1713621108278,-1707.29748612,0.00017,2]
[323054490,1713621108289,-1707.29748612,0.00017,2]
[323054491,1713621108300,-1707.29748612,0.00017,2]
[323054492,1713621108310,-1707.29748612,0.00017,2]
[323054493,1713621108320,-1707.29748612,0.00017,2]
[323054494,1713621108331,-1707.29748612,0.00017,2]
[323054495,1713621108341,-1707.29748612,0.00017,2]
[323054496,1713621108352,-1707.29748612,0.00017,2]
[323054497,1713621108362,-1707.29748612,0.00017,2]
[323054498,1713621108373,-1707.29748612,0.00017,2]
[323054499,1713621108383,-1707.29748612,0.00017,2]
[323054500,1713621108394,-1707.29748612,0.00017,2]
[323054501,1713621108404,-1707.29748612,0.00017,2]
[323054502,1713621108413,-1707.29748612,0.00017,2]
[323054503,1713621108424,-1707.29748612,0.00017,2]
[323054504,1713621108435,-1707.29748612,0.00017,2]
[323054505,1713621108445,-1707.29748612,0.00017,2]
[323054506,1713621108456,-1707.29748612,0.00017,2]
[323054507,1713621108466,-1707.29748612,0.00017,2]
[323054508,1713621108476,-1707.29748612,0.00017,2]
[323054509,1713621108487,-1707.29748612,0.00017,2]
[323054510,1713621108497,-1707.29748612,0.00017,2]
[323054511,1713621108507,-1707.29748612,0.00017,2]
[323054512,1713621108518,-1707.29748612,0.00017,2]
[323054513,1713621108529,-1707.29748612,0.00017,2]
[323054514,1713621108539,-1707.29748612,0.00017,2]
[323054515,1713621108550,-1707.29748612,0.00017,2]
[323054516,1713621108560,-1707.29748612,0.00017,2]
[323054517,1713621108571,-1707.29748612,0.00017,2]
[323054518,1713621108582,-1707.29748612,0.00017,2]
[323054519,1713621108592,-1707.29748612,0.00017,2]
[323054520,1713621108603,-1707.29748612,0.00017,2]
[323054521,1713621108613,-1707.29748612,0.00017,2]
[323054522,1713621108624,-1707.29748612,0.00017,2]
[323054523,1713621108634,-1707.29748612,0.00017,2]
[323054524,1713621108645,-1707.29748612,0.00017,2]
[323054525,1713621108655,-1707.29748612,0.00017,2]
[323054526,1713621108665,-1707.29748612,0.00017,2]
[323054527,1713621108677,-1707.29748612,0.00017,2]
[323054528,1713621108687,-1000.0,0.00017032,2]
[323054529,1713621108698,-1000.0,0.00017078,2]
[323054530,1713621108709,-1000.0,0.00017123,2]
[323054531,1713621108719,-995.78,0.00017135,2]
[323054532,1713621108729,-167.07,0.00017137,2]
[323054533,1713621108740,-151.72,0.00017137,2]
[323054534,1713621108751,-150.0,0.00017138,2]
[323054535,1713621108761,-150.0,0.00017139,2]
[323054536,1713621108772,-1000.0,0.0001714,2]
[323054537,1713621108783,-1000.0,0.00017158,2]
[323054538,1713621108793,-1000.0,0.00017175,2]
[323054539,1713621108804,-1000.0,0.00017192,2]
[323054540,1713621108814,-565.761,0.00017194,2]
[323054541,1713621108825,-565.761,0.00017194,2]
[323054542,1713621108835,-565.761,0.00017194,2]
[323054543,1713621108846,-565.761,0.00017194,2]
[323054544,1713621108857,-565.761,0.00017194,2]
[323054545,1713621108868,-565.761,0.00017194,2]
[323054546,1713621108880,-565.761,0.00017194,2]
[323054547,1713621108890,-565.761,0.00017194,2]
[323054548,1713621108901,-565.761,0.00017194,2]
[323054549,1713621108911,-565.761,0.00017194,2]
[323054550,1713621108921,-1000.0,0.00017209,2]
[323054551,1713621108931,-1000.0,0.00017226,2]
[323054552,1713621108942,-1000.0,0.00017243,2]
[323054553,1713621108952,-500.0,0.0001726,2]
[323054554,1713621108962,-391.97665061,0.0001726,2]
[323054555,1713621108972,-500.0,0.0001726,2]
[323054556,1713621108983,-635.04,0.0001726,2]
[323054557,1713621108993,-639.54,0.0001726,2]
[323054558,1713621109006,-500.0,0.0001726,2]
[323054559,1713621109015,-500.0,0.0001726,2]
[323054560,1713621109025,-852.82,0.0001726,2]
[323054561,1713621109035,-654.32,0.0001726,2]
[323054562,1713621109045,-500.0,0.0001726,2]
[323054563,1713621109056,-502.56,0.0001726,2]
[323054564,1713621109065,-500.0,0.0001726,2]
[323054565,1713621109075,-500.0,0.0001726,2]
[323054566,1713621109085,-500.0,0.0001726,2]
[323054567,1713621109095,-500.0,0.0001726,2]
[323054568,1713621109105,-611.35,0.0001726,2]
[323054569,1713621109115,-500.0,0.0001726,2]
[323054570,1713621109125,-735.88,0.0001726,2]
[323054571,1713621109135,-717.35,0.0001726,2]
[323054572,1713621109145,-500.0,0.0001726,2]
[323054573,1713621109155,-539.29,0.0001726,2]
[323054574,1713621109165,-500.0,0.0001726,2]
[323054575,1713621109175,-500.0,0.0001726,2]
[323054576,1713621109186,-500.0,0.0001726,2]
[323054577,1713621109195,-495.0604585,0.0001726,2]
[323054578,1713621109205,-500.0,0.0001726,2]
[323054579,1713621109215,-500.0,0.0001726,2]
[323054580,1713621109225,-500.0,0.0001726,2]
[323054581,1713621109235,-500.0,0.0001726,2]
[323054582,1713621109244,-569.73,0.0001726,2]
[323054583,1713621109255,-500.0,0.0001726,2]
[323054584,1713621109265,-827.03,0.0001726,2]
[323054585,1713621109276,-637.21,0.0001726,2]
[323054586,1713621109286,-500.0,0.0001726,2]
[323054587,1713621109299,-500.0,0.0001726,2]
[323054588,1713621109309,-579.7,0.0001726,2]
[323054589,1713621109319,-969.36,0.0001726,2]
[323054590,1713621109329,-500.0,0.0001726,2]
[323054591,1713621109339,-781.94,0.0001726,2]
[323054592,1713621109349,-667.13,0.0001726,2]
[323054593,1713621109359,-500.0,0.0001726,2]
[323054594,1713621109370,-500.0,0.0001726,2]
[323054595,1713621109380,-500.0,0.0001726,2]
[323054596,1713621109390,-500.0,0.0001726,2]
[323054597,1713621109400,-500.0,0.0001726,2]
[323054598,1713621109410,-500.0,0.0001726,2]
[323054599,1713621109419,-770.44,0.0001726,2]
[323054600,1713621109429,-1099.12,0.0001726,2]
[323054601,1713621109439,-597.89,0.0001726,2]
[323054602,1713621109449,-500.0,0.0001726,2]
[323054603,1713621109460,-522.54,0.0001726,2]
[323054604,1713621109470,-500.0,0.0001726,2]
[323054605,1713621109480,-500.0,0.0001726,2]
[323054606,1713621109489,-532.55,0.0001726,2]
[323054607,1713621109500,-500.0,0.0001726,2]
[323054608,1713621109510,-618.57,0.0001726,2]
[323054609,1713621109520,-500.0,0.0001726,2]
[323054610,1713621109530,-737.86,0.0001726,2]
[323054611,1713621109540,-500.0,0.0001726,2]
[323054612,1713621109550,-515.87,0.0001726,2]
[323054613,1713621109560,-500.0,0.0001726,2]
[323054614,1713621109570,-912.68,0.0001726,2]
[323054615,1713621109580,-500.0,0.0001726,2]
[323054616,1713621109590,-860.75,0.0001726,2]
[323054617,1713621109600,-500.0,0.0001726,2]
[323054618,1713621109610,-702.21,0.0001726,2]
[323054619,1713621109620,-500.0,0.0001726,2]
[323054620,1713621109629,-500.0,0.0001726,2]
[323054621,1713621109640,-500.0,0.0001726,2]
[323054622,1713621109650,-525.0203025,0.0001726,2]
[323054623,1713621109660,-821.61,0.0001726,2]
[323054624,1713621109670,-821.76,0.0001726,2]
[323054625,1713621109681,-549.15,0.0001726,2]
[323054626,1713621109691,-500.0,0.0001726,2]
[323054627,1713621109701,-500.0,0.0001726,2]
[323054628,1713621109712,-500.0,0.0001726,2]
[323054629,1713621109722,-500.0,0.0001726,2]
[323054630,1713621109732,-500.0,0.0001726,2]
[323054631,1713621109742,-940.84,0.0001726,2]
[323054632,1713621109753,-500.0,0.0001726,2]
[323054633,1713621109764,-863.56,0.0001726,2]
[323054634,1713621109774,-500.0,0.0001726,2]
[323054635,1713621109785,-1083.21,0.0001726,2]
[323054636,1713621109795,-500.0,0.0001726,2]
[323054637,1713621109806,-1649.11,0.0001726,2]
[323054638,1713621109815,-500.0,0.0001726,2]
[323054639,1713621109825,-500.0,0.0001726,2]
[323054640,1713621109836,-933.2,0.0001726,2]
[323054641,1713621109846,-500.0,0.0001726,2]
[323054642,1713621109856,-1738.53,0.0001726,2]
[323054643,1713621109866,-500.0,0.0001726,2]
[323054644,1713621109876,-500.0,0.0001726,2]
[323054645,1713621109887,-634.04469863,0.0001726,2]
[323054646,1713621109898,-641.19,0.0001726,2]
[323054647,1713621109908,-546.2,0.0001726,2]
[323054648,1713621109918,-669.09,0.0001726,2]
[323054649,1713621109928,-538.48,0.0001726,2]
[323054650,1713621109939,-500.0,0.0001726,2]
[323054651,1713621109949,-526.85,0.0001726,2]
[323054652,1713621109959,-1472.9,0.0001726,2]
[323054653,1713621109970,-679.04,0.0001726,2]
[323054654,1713621109980,-633.05,0.0001726,2]
[323054655,1713621109991,-500.0,0.0001726,2]
[323054656,1713621110002,-350.81648533,0.0001726,2]
[323054657,1713621110012,-889.7,0.0001726,2]
[323054658,1713621110022,-500.0,0.0001726,2]
[323054659,1713621110032,-749.34,0.0001726,2]
[323054660,1713621110042,-614.66,0.0001726,2]
[323054661,1713621110051,-669.86,0.0001726,2]
[323054662,1713621110062,-627.14,0.0001726,2]
[323054663,1713621110073,-500.0,0.0001726,2]
[323054664,1713621110083,-887.51,0.0001726,2]
[323054665,1713621110094,-500.0,0.0001726,2]
[323054666,1713621110104,-595.2,0.0001726,2]
[323054667,1713621110113,-500.0,0.0001726,2]
[323054668,1713621110123,-500.0,0.0001726,2]
[323054669,1713621110133,-500.0,0.0001726,2]
[323054670,1713621110143,-712.4,0.0001726,2]
[323054671,1713621110154,-500.0,0.0001726,2]
[323054672,1713621110164,-654.49,0.0001726,2]
[323054673,1713621110174,-583.86,0.0001726,2]
[323054674,1713621110185,-714.19,0.0001726,2]
[323054675,1713621110195,-543.54,0.0001726,2]
[323054676,1713621110205,-856.07,0.0001726,2]
[323054677,1713621110495,-519.9,0.0001726,2]
[323054678,1713621110550,-500.0,0.0001726,2]
[323054679,1713621110561,-1382.29,0.0001726,2]
[323054680,1713621110572,-500.0,0.0001726,2]
[323054681,1713621110583,-704.01,0.0001726,2]
[323054682,1713621110593,-500.0,0.0001726,2]
[323054683,1713621110603,-943.86,0.0001726,2]
[323054684,1713621110613,-778.05,0.0001726,2]
[323054685,1713621110624,-533.87,0.0001726,2]
[323054686,1713621110634,-1206.79,0.0001726,2]
[323054687,1713621110645,-864.0,0.0001726,2]
[323054688,1713621110656,-871.35,0.0001726,2]
[323054689,1713621110665,-500.0,0.0001726,2]
[323054690,1713621110675,-500.0,0.0001726,2]
[323054691,1713621110685,-581.68,0.0001726,2]
[323054692,1713621110695,-998.69,0.0001726,2]
[323054693,1713621110705,-580.51,0.0001726,2]
[323054694,1713621110715,-500.0,0.0001726,2]
[323054695,1713621110726,-564.88,0.0001726,2]
[323054696,1713621110736,-777.99,0.0001726,2]
[323054697,1713621110747,-566.7,0.0001726,2]
[323054698,1713621110757,-500.0,0.0001726,2]
[323054699,1713621110767,-772.56,0.0001726,2]
[323054700,1713621110777,-922.4,0.0001726,2]
[323054701,1713621110787,-500.0,0.0001726,2]
[323054702,1713621110798,-741.19,0.0001726,2]
[323054703,1713621110808,-500.0,0.0001726,2]
[323054704,1713621110818,-510.23,0.0001726,2]
[323054705,1713621110828,-500.0,0.0001726,2]
[323054706,1713621110838,-1301.99,0.0001726,2]
[323054707,1713621110849,-1011.91,0.0001726,2]
[323054708,1713621110859,-729.34,0.0001726,2]
[323054709,1713621110869,-598.99,0.0001726,2]
[323054710,1713621110879,-590.27,0.0001726,2]
[323054711,1713621110890,-500.0,0.0001726,2]
[323054712,1713621110900,-500.0,0.0001726,2]
[323054713,1713621110910,-983.5,0.0001726,2]
[323054714,1713621110920,-500.0,0.0001726,2]
[323054715,1713621110931,-500.0,0.0001726,2]
[323054716,1713621110942,-500.0,0.0001726,2]
[323054717,1713621110952,-829.71,0.0001726,2]
[323054718,1713621110963,-500.0,0.0001726,2]
[323054719,1713621110974,-605.59,0.0001726,2]
[323054720,1713621110985,-500.0,0.0001726,2]
[323054721,1713621110995,-1243.7,0.0001726,2]
[323054722,1713621111007,-1886.34,0.0001726,2]
[323054723,1713621111018,-500.0,0.0001726,2]
[323054724,1713621111028,-685.34,0.0001726,2]
[323054725,1713621111038,-500.0,0.0001726,2]
[323054726,1713621111048,-500.0,0.0001726,2]
[323054727,1713621111057,-500.0,0.0001726,2]
[323054728,1713621111067,-500.0,0.0001726,2]
[323054729,1713621111077,-500.0,0.0001726,2]
[323054730,1713621111087,-612.53,0.0001726,2]
[323054731,1713621111097,-723.5,0.0001726,2]
[323054732,1713621111108,-730.92,0.0001726,2]
[323054733,1713621111120,-301.85641035,0.0001726,2]
[323054734,1713621111130,-500.0,0.0001726,2]
[323054735,1713621111141,-1025.52,0.0001726,2]
[323054736,1713621111151,-500.0,0.0001726,2]
[323054737,1713621111161,-500.0,0.0001726,2]
[323054738,1713621111171,-1486.68,0.0001726,2]
[323054739,1713621111181,-500.0,0.0001726,2]
[323054740,1713621111191,-970.1,0.0001726,2]
[323054741,1713621111201,-500.0,0.0001726,2]
[323054742,1713621111211,-600.76,0.0001726,2]
[323054743,1713621111221,-500.0,0.0001726,2]
[323054744,1713621111231,-580.95,0.0001726,2]
[323054745,1713621111241,-775.5,0.0001726,2]
[323054746,1713621111251,-1195.92,0.0001726,2]
[323054747,1713621111261,-971.12,0.0001726,2]
[323054748,1713621111271,-558.98,0.0001726,2]
[323054749,1713621111282,-751.59,0.0001726,2]
[323054750,1713621111293,-500.0,0.0001726,2]
[323054751,1713621111303,-500.0,0.0001726,2]
[323054752,1713621111313,-1627.69,0.0001726,2]
[323054753,1713621111323,-1693.65,0.0001726,2]
[323054754,1713621111332,-712.6,0.0001726,2]
[323054755,1713621111342,-500.0,0.0001726,2]
[323054756,1713621111352,-500.0,0.0001726,2]
[323054757,1713621111362,-964.32,0.0001726,2]
[323054758,1713621111373,-500.0,0.0001726,2]
[323054759,1713621111384,-611.81,0.0001726,2]
[323054760,1713621111394,-1500.36,0.0001726,2]
[323054761,1713621111404,-630.97,0.0001726,2]
[323054762,1713621111414,-1123.09,0.0001726,2]
[323054763,1713621111423,-500.0,0.0001726,2]
[323054764,1713621111433,-500.0,0.0001726,2]
[323054765,1713621111443,-571.83,0.0001726,2]
[323054766,1713621111453,-1122.67,0.0001726,2]
[323054767,1713621111463,-959.94,0.0001726,2]
[323054768,1713621111473,-666.18,0.0001726,2]
[323054769,1713621111483,-717.02,0.0001726,2]
[323054770,1713621111493,-500.0,0.0001726,2]
[323054771,1713621111504,-656.38,0.0001726,2]
[323054772,1713621111515,-672.57,0.0001726,2]
[323054773,1713621111524,-500.0,0.0001726,2]
[323054774,1713621111534,-817.63,0.0001726,2]
[323054775,1713621111545,-748.28,0.0001726,2]
[323054776,1713621111556,-1401.32,0.0001726,2]
[323054777,1713621111566,-1699.19,0.0001726,2]
[323054778,1713621111577,-1021.58,0.0001726,2]
[323054779,1713621111586,-500.0,0.0001726,2]
[323054780,1713621111596,-2008.01,0.0001726,2]